fUSD/lending_fUSD_20260610
["ID","MTS","AMOUNT","RATE_DAILY","PERIOD"]
[424682065,1781046651000,-172.17979501,0.0002187,2]
[424682042,1781046651000,-282.19036087,0.0002187,2]
[424682066,1781046651000,-500.0,0.00021887,2]
[424682041,1781046651000,-6475.04,0.000217,2]
[424682045,1781046651000,-152.0,0.0002187,2]
[424682044,1781046651000,-152.0,0.0002187,2]
[424682043,1781046651000,-222.72228664,0.0002187,2]
[424682046,1781046651000,-152.0,0.0002187,2]
[424682049,1781046651000,-151.0,0.0002187,2]
[424682048,1781046651000,-151.0,0.0002187,2]
[424682052,1781046651000,-151.0,0.0002187,2]
[424682053,1781046651000,-151.0,0.0002187,2]
[424682051,1781046651000,-151.0,0.0002187,2]
[424682047,1781046651000,-151.0,0.0002187,2]
[424682050,1781046651000,-151.0,0.0002187,2]
[424682054,1781046651000,-151.0,0.0002187,2]
[424682055,1781046651000,-151.0,0.0002187,2]
[424682056,1781046651000,-151.0,0.0002187,2]
[424682057,1781046651000,-156.7527199,0.0002187,2]
[424682058,1781046651000,-151.0,0.0002187,2]
[424682059,1781046651000,-151.0,0.0002187,2]
[424682061,1781046651000,-152.0,0.0002187,2]
[424682063,1781046651000,-164.81794585,0.0002187,2]
[424682064,1781046651000,-151.0,0.0002187,2]
[424682060,1781046651000,-152.0,0.0002187,2]
[424682062,1781046651000,-152.0,0.0002187,2]
[424682072,1781046651000,-250.0,0.00021918,2]
[424682090,1781046651000,-250.0,0.00021918,2]
[424682084,1781046651000,-250.0,0.00021918,2]
[424682091,1781046651000,-250.0,0.00021918,2]
[424682123,1781046651000,-316.449424,0.00022,2]
[424682126,1781046651000,-662.0,0.00022,2]
[424682125,1781046651000,-213.98,0.00022,2]
[424682128,1781046651000,-665.0,0.00022,2]
[424682127,1781046651000,-798.0,0.00022,2]
[424682130,1781046651000,-1055.93,0.00022,2]
[424682132,1781046651000,-250.0,0.00022032,2]
[424682138,1781046651000,-250.0,0.00022032,2]
[424682129,1781046651000,-2143.0,0.00022,2]
[424682133,1781046651000,-250.0,0.00022032,2]
[424682139,1781046651000,-250.0,0.00022032,2]
[424682131,1781046651000,-4051.0,0.00022,2]
[424682135,1781046651000,-250.0,0.00022032,2]
[424682134,1781046651000,-250.0,0.00022032,2]
[424682136,1781046651000,-250.0,0.00022032,2]
[424682137,1781046651000,-250.0,0.00022032,2]
[424682140,1781046651000,-319.0,0.00022032,2]
[424682141,1781046651000,-239.83,0.0002207,2]
[424682142,1781046651000,-3275.391,0.0002207,2]
[424682143,1781046651000,-300.0,0.00022127,2]
[424682145,1781046651000,-300.0,0.00022127,2]
[424682144,1781046651000,-300.0,0.00022127,2]
[424682096,1781046651000,-398.09555,0.00021918,2]
[424682120,1781046651000,-450.0,0.00022,2]
[424682122,1781046651000,-326.0,0.00022,2]
[424682101,1781046651000,-166.0,0.00021918,2]
[424682124,1781046651000,-176.15436188,0.00022,2]
[424682092,1781046651000,-250.0,0.00021918,2]
[424682121,1781046651000,-1207.0,0.00022,2]
[424682093,1781046651000,-250.0,0.00021918,2]
[424682094,1781046651000,-250.0,0.00021918,2]
[424682099,1781046651000,-306.88,0.00021918,2]
[424682107,1781046651000,-166.0,0.00021918,2]
[424682104,1781046651000,-166.0,0.00021918,2]
[424682103,1781046651000,-166.0,0.00021918,2]
[424682108,1781046651000,-688.15009585,0.00021918,30]
[424682105,1781046651000,-166.0,0.00021918,2]
[424682102,1781046651000,-166.0,0.00021918,2]
[424682106,1781046651000,-166.0,0.00021918,2]
[424682095,1781046651000,-250.0,0.00021918,2]
[424682109,1781046651000,-150.0,0.00021918,2]
[424682100,1781046651000,-166.0,0.00021918,2]
[424682119,1781046651000,-698.0,0.00022,2]
[424682117,1781046651000,-620.0,0.00022,2]
[424682115,1781046651000,-2096.0,0.00022,2]
[424682116,1781046651000,-778.0,0.00022,2]
[424682118,1781046651000,-3176.0,0.00022,2]
[424682110,1781046651000,-200.0,0.00021918,2]
[424682112,1781046651000,-312.407197,0.00022,2]
[424682113,1781046651000,-742.0,0.00022,2]
[424682111,1781046651000,-441.0,0.00022,2]
[424682114,1781046651000,-562.0,0.00022,2]
[424682163,1781046652000,-388.87205564,0.00022182,2]
[424682175,1781046652000,-388.87205564,0.00022311,2]
[424682167,1781046652000,-230.18020008,0.00022182,2]
[424682168,1781046652000,-1125.0,0.00022214,2]
[424682170,1781046652000,-388.87205564,0.00022246,2]
[424682173,1781046652000,-200.0,0.00022293,2]
[424682172,1781046652000,-1841.44160068,0.00022258,2]
[424682177,1781046652000,-150.0,0.00022348,2]
[424682181,1781046652000,-150.0,0.00022348,2]
[424682176,1781046652000,-1841.44160068,0.00022335,2]
[424682178,1781046652000,-150.0,0.00022348,2]
[424682171,1781046652000,-2000.0,0.00022252,7]
[424682179,1781046652000,-150.0,0.00022348,2]
[424682180,1781046652000,-150.0,0.00022348,2]
[424682184,1781046652000,-161.0,0.00022348,2]
[424682160,1781046652000,-2405.55389863,0.00022171,2]
[424682174,1781046652000,-1841.44160068,0.00022296,2]
[424682165,1781046652000,-154.29122004,0.00022182,2]
[424682152,1781046652000,-154.6875,0.00022171,2]
[424682166,1781046652000,-1841.44160068,0.00022182,2]
[424682146,1781046652000,-300.0,0.00022127,2]
[424682149,1781046652000,-300.0,0.00022127,2]
[424682148,1781046652000,-300.0,0.00022127,2]
[424682147,1781046652000,-300.0,0.00022127,2]
[424682150,1781046652000,-300.0,0.00022127,2]
[424682187,1781046652000,-388.87205564,0.00022375,7]
[424682155,1781046652000,-1651.81367706,0.00022171,2]
[424682169,1781046652000,-1841.44160068,0.0002222,2]
[424682154,1781046652000,-201.93286098,0.00022171,2]
[424682151,1781046652000,-183.0,0.00022127,2]
[424682159,1781046652000,-151.0,0.00022171,2]
[424682156,1781046652000,-242.15909246,0.00022171,2]
[424682157,1781046652000,-3082.5947288,0.00022171,2]
[424682158,1781046652000,-151.0,0.00022171,2]
[424682164,1781046652000,-227.06279087,0.00022182,2]
[424682162,1781046652000,-200.0,0.00022181,2]
[424682153,1781046652000,-188.38149283,0.00022171,2]
[424682186,1781046652000,-1841.44160068,0.00022373,2]
[424682161,1781046652000,-242.15909246,0.00022171,2]
[424682183,1781046652000,-150.0,0.00022348,2]
[424682207,1781046652000,-250.0,0.00022559,2]
[424682206,1781046652000,-250.0,0.00022559,2]
[424682209,1781046652000,-158.0,0.00022559,2]
[424682217,1781046652000,-151.0,0.00022692,2]
[424682218,1781046652000,-151.0,0.00022692,2]
[424682216,1781046652000,-1841.44160068,0.00022678,7]
[424682210,1781046652000,-1841.44160068,0.00022563,7]
[424682212,1781046652000,-1841.44160068,0.00022601,7]
[424682215,1781046652000,-5032.0,0.00022641,2]
[424682211,1781046652000,-388.87205564,0.00022568,7]
[424682213,1781046652000,-388.87205564,0.00022633,7]
[424682221,1781046652000,-388.87205564,0.00022697,7]
[424682220,1781046652000,-187.065323,0.00022692,2]
[424682219,1781046652000,-151.0,0.00022692,2]
[424682222,1781046652000,-227.06279087,0.00022716,7]
[424682223,1781046652000,-1841.44160068,0.00022716,7]
[424682185,1781046652000,-1344.1,0.00022353,2]
[424682208,1781046652000,-250.0,0.00022559,2]
[424682205,1781046652000,-250.0,0.00022559,2]
[424682214,1781046652000,-1841.44160068,0.00022639,7]
[424682203,1781046652000,-250.0,0.00022559,2]
[424682182,1781046652000,-150.0,0.00022348,2]
[424682204,1781046652000,-250.0,0.00022559,2]
[424682190,1781046652000,-388.87205564,0.0002244,7]
[424682189,1781046652000,-1841.44160068,0.00022411,2]
[424682191,1781046652000,-288.0,0.0002244,2]
[424682198,1781046652000,-1612.43193386,0.00022513,2]
[424682194,1781046652000,-230.18020008,0.00022449,7]
[424682192,1781046652000,-227.06279087,0.00022449,7]
[424682188,1781046652000,-687.3,0.000224,7]
[424682199,1781046652000,-1841.44160068,0.00022525,7]
[424682197,1781046652000,-388.87205564,0.00022504,7]
[424682201,1781046652000,-250.0,0.00022559,2]
[424682202,1781046652000,-250.0,0.00022559,2]
[424682200,1781046652000,-500.0,0.00022544,2]
[424682195,1781046652000,-152.0,0.00022463,3]
[424682196,1781046652000,-1841.44160068,0.00022487,7]
[424682193,1781046652000,-1841.44160068,0.00022449,7]
[424682270,1781046653000,-2143.0,0.00023,2]
[424682264,1781046653000,-1207.0,0.00023,2]
[424682262,1781046653000,-3176.0,0.00023,2]
[424682263,1781046653000,-698.0,0.00023,2]
[424682260,1781046653000,-778.0,0.00023,2]
[424682255,1781046653000,-230.18020008,0.00022983,14]
[424682261,1781046653000,-620.0,0.00023,2]
[424682258,1781046653000,-562.0,0.00023,2]
[424682259,1781046653000,-2096.0,0.00023,2]
[424682275,1781046653000,-1841.44160068,0.00023059,14]
[424682257,1781046653000,-742.0,0.00023,2]
[424682256,1781046653000,-312.407197,0.00023,2]
[424682274,1781046653000,-1841.44160068,0.00023021,14]
[424682266,1781046653000,-1713.194602,0.00023,7]
[424682269,1781046653000,-665.0,0.00023,2]
[424682265,1781046653000,-326.0,0.00023,2]
[424682272,1781046653000,-215.89329178,0.00023,7]
[424682268,1781046653000,-798.0,0.00023,2]
[424682271,1781046653000,-4051.0,0.00023,2]
[424682267,1781046653000,-662.0,0.00023,2]
[424682276,1781046653000,-200.0,0.00023067,2]
[424682277,1781046653000,-388.87205564,0.00023084,14]
[424682287,1781046653000,-250.0,0.00023216,2]
[424682280,1781046653000,-152.0,0.00023148,4]
[424682254,1781046653000,-1841.44160068,0.00022983,14]
[424682281,1781046653000,-388.87205564,0.00023148,30]
[424682273,1781046653000,-388.87205564,0.00023019,14]
[424682253,1781046653000,-227.06279087,0.00022983,14]
[424682242,1781046653000,-46380.29045687,0.00022802,2]
[424682248,1781046653000,-2000.0,0.000229,2]
[424682279,1781046653000,-1841.44160068,0.00023135,14]
[424682224,1781046653000,-230.18020008,0.00022716,7]
[424682228,1781046653000,-747.80937859,0.00022718,2]
[424682227,1781046653000,-599.60298507,0.00022718,2]
[424682225,1781046653000,-257.94169094,0.00022717,2]
[424682226,1781046653000,-151.0,0.00022718,2]
[424682229,1781046653000,-154.6875,0.00022719,2]
[424682230,1781046653000,-188.38149283,0.00022719,2]
[424682231,1781046653000,-209.40437684,0.00022719,2]
[424682241,1781046653000,-199.64334801,0.000228,2]
[424682232,1781046653000,-1712.93078311,0.00022719,2]
[424682238,1781046653000,-1841.44160068,0.00022754,7]
[424682236,1781046653000,-2494.55939288,0.00022719,2]
[424682234,1781046653000,-151.0,0.00022719,2]
[424682233,1781046653000,-251.11897889,0.00022719,2]
[424682239,1781046653000,-388.87205564,0.00022762,14]
[424682240,1781046653000,-1841.44160068,0.00022792,7]
[424682235,1781046653000,-151.0,0.00022719,2]
[424682237,1781046653000,-251.11897888,0.00022719,2]
[424682244,1781046653000,-1841.44160068,0.0002283,7]
[424682243,1781046653000,-388.87205564,0.00022826,14]
[424682245,1781046653000,-1841.44160068,0.00022868,7]
[424682246,1781046653000,-1195.0,0.00022886,7]
[424682249,1781046653000,-1841.44160068,0.00022906,14]
[424682247,1781046653000,-388.87205564,0.00022891,14]
[424682250,1781046653000,-350.0,0.00022926,4]
[424682252,1781046653000,-388.87205564,0.00022955,14]
[424682251,1781046653000,-1841.44160068,0.00022944,14]
[424682286,1781046653000,-277.0,0.00023216,2]
[424682304,1781046653000,-165.404,0.00023216,2]
[424682282,1781046653000,-1841.44160068,0.00023173,14]
[424682315,1781046653000,-217.15233878,0.00023267,2]
[424682324,1781046653000,-1125.0,0.00023325,2]
[424682314,1781046653000,-188.38149283,0.00023267,2]
[424682316,1781046653000,-1776.30922209,0.00023267,2]
[424682322,1781046653000,-1841.44160068,0.00023288,14]
[424682321,1781046653000,-388.87205564,0.00023277,30]
[424682319,1781046653000,-2586.85809042,0.00023267,2]
[424682318,1781046653000,-151.0,0.00023267,2]
[424682317,1781046653000,-151.0,0.00023267,2]
[424682320,1781046653000,-260.4103811,0.00023267,2]
[424682326,1781046653000,-388.87205564,0.00023341,30]
[424682328,1781046653000,-1841.44160068,0.00023364,30]
[424682327,1781046653000,-230.18020006,0.00023349,60]
[424682329,1781046653000,-4921.53798047,0.00023384,2]
[424682330,1781046653000,-10266.73105246,0.00023384,2]
[424682337,1781046653000,-227.06279087,0.00023516,60]
[424682332,1781046653000,-1841.44160068,0.00023402,30]
[424682334,1781046653000,-1841.44160068,0.0002344,30]
[424682331,1781046653000,-6475.04,0.00023401,7]
[424682336,1781046653000,-1841.44160068,0.00023478,30]
[424682335,1781046653000,-388.87205564,0.0002347,30]
[424682333,1781046653000,-388.87205564,0.00023406,30]
[424682339,1781046653000,-230.18020008,0.00023516,30]
[424682341,1781046653000,-1841.44160068,0.00023554,30]
[424682338,1781046653000,-1841.44160068,0.00023516,30]
[424682278,1781046653000,-1841.44160068,0.00023097,14]
[424682342,1781046653000,-1841.44160068,0.00023593,30]
[424682325,1781046653000,-1841.44160068,0.00023326,14]
[424682312,1781046653000,-500.0,0.0002326,2]
[424682340,1781046653000,-388.87205564,0.00023535,60]
[424682323,1781046653000,-150.0,0.00023288,2]
[424682313,1781046653000,-154.6875,0.00023267,2]
[424682285,1781046653000,-150.0,0.00023216,2]
[424682283,1781046653000,-1841.44160068,0.00023211,14]
[424682288,1781046653000,-200.0,0.00023216,2]
[424682289,1781046653000,-220.0,0.00023216,2]
[424682290,1781046653000,-250.0,0.00023216,2]
[424682294,1781046653000,-250.0,0.00023216,2]
[424682299,1781046653000,-250.0,0.00023216,2]
[424682296,1781046653000,-250.0,0.00023216,2]
[424682292,1781046653000,-242.103,0.00023216,2]
[424682298,1781046653000,-167.505,0.00023216,2]
[424682293,1781046653000,-247.865,0.00023216,2]
[424682295,1781046653000,-167.579,0.00023216,2]
[424682284,1781046653000,-388.87205564,0.00023213,30]
[424682291,1781046653000,-208.87,0.00023216,2]
[424682308,1781046653000,-500.0,0.0002322,2]
[424682306,1781046653000,-1274.0,0.00023216,2]
[424682305,1781046653000,-400.0,0.00023216,2]
[424682311,1781046653000,-230.18020008,0.00023249,14]
[424682297,1781046653000,-195.291,0.00023216,2]
[424682307,1781046653000,-1227.0,0.00023216,2]
[424682303,1781046653000,-1358.0,0.00023216,2]
[424682300,1781046653000,-189.0,0.00023216,2]
[424682302,1781046653000,-3576.739,0.00023216,2]
[424682310,1781046653000,-1841.44160068,0.00023249,14]
[424682301,1781046653000,-247.56,0.00023216,2]
[424682309,1781046653000,-227.06279087,0.00023249,30]
[424682377,1781046654000,-1841.44160068,0.00023859,60]
[424682381,1781046654000,-1841.44160068,0.00023936,60]
[424682379,1781046654000,-332.37637789,0.00023903,2]
[424682386,1781046654000,-350.0,0.00023993,4]
[424682364,1781046654000,-687.3,0.000238,7]
[424682382,1781046654000,-1841.44160068,0.00023974,60]
[424682378,1781046654000,-1841.44160068,0.00023897,60]
[424682376,1781046654000,-388.87205564,0.00023857,60]
[424682367,1781046654000,-225.18697532,0.00023815,2]
[424682369,1781046654000,-151.0,0.00023815,2]
[424682384,1781046654000,-3643.0,0.00023991,2]
[424682380,1781046654000,-497.42096307,0.00023917,2]
[424682397,1781046654000,-1207.0,0.00024,2]
[424682383,1781046654000,-1214.0,0.00023991,2]
[424682388,1781046654000,-600.0,0.00024,7]
[424682395,1781046654000,-698.0,0.00024,2]
[424682393,1781046654000,-620.0,0.00024,2]
[424682396,1781046654000,-500.0,0.00024,2]
[424682398,1781046654000,-326.0,0.00024,2]
[424682387,1781046654000,-312.407197,0.00024,2]
[424682389,1781046654000,-742.0,0.00024,2]
[424682392,1781046654000,-778.0,0.00024,2]
[424682391,1781046654000,-2096.0,0.00024,2]
[424682366,1781046654000,-188.38149283,0.00023815,2]
[424682390,1781046654000,-562.0,0.00024,2]
[424682385,1781046654000,-6075.0,0.00023991,2]
[424682371,1781046654000,-2682.57183977,0.00023815,2]
[424682353,1781046654000,-1841.44160068,0.00023669,30]
[424682368,1781046654000,-1842.0326633,0.00023815,2]
[424682394,1781046654000,-3176.0,0.00024,2]
[424682347,1781046654000,-150.0,0.00023638,2]
[424682348,1781046654000,-199.0,0.00023638,2]
[424682350,1781046654000,-737.9,0.00023654,7]
[424682349,1781046654000,-834.96,0.00023654,7]
[424682343,1781046654000,-388.87205564,0.00023599,60]
[424682344,1781046654000,-1841.44160068,0.00023631,30]
[424682346,1781046654000,-150.0,0.00023638,2]
[424682345,1781046654000,-150.0,0.00023638,2]
[424682351,1781046654000,-602.36,0.00023654,7]
[424682352,1781046654000,-388.87205564,0.00023664,60]
[424682358,1781046654000,-150.0,0.0002375,2]
[424682354,1781046654000,-534.74,0.0002369,2]
[424682356,1781046654000,-388.87205564,0.00023728,60]
[424682360,1781046654000,-227.06279087,0.00023783,60]
[424682359,1781046654000,-150.0,0.00023755,2]
[424682357,1781046654000,-1841.44160068,0.00023745,30]
[424682355,1781046654000,-1841.44160068,0.00023707,30]
[424682363,1781046654000,-388.87205564,0.00023792,60]
[424682361,1781046654000,-1841.44160068,0.00023783,30]
[424682362,1781046654000,-230.18020008,0.00023783,30]
[424682365,1781046654000,-154.6875,0.00023815,2]
[424682375,1781046654000,-200.0,0.00023841,2]
[424682373,1781046654000,-1841.44160068,0.00023821,60]
[424682374,1781046654000,-152.0,0.00023833,5]
[424682370,1781046654000,-151.0,0.00023815,2]
[424682401,1781046654000,-665.0,0.00024,2]
[424682372,1781046654000,-270.0455652,0.00023815,2]
[424682405,1781046654000,-5530.0,0.00024,3]
[424682432,1781046654000,-5530.0,0.000246,5]
[424682435,1781046654000,-150.0,0.00024633,4]
[424682434,1781046654000,-150.0,0.00024633,4]
[424682456,1781046654000,-388.607731,0.00024658,2]
[424682433,1781046654000,-200.0,0.00024615,2]
[424682441,1781046654000,-151.56478511,0.00024633,4]
[424682442,1781046654000,-332.41683051,0.00024633,4]
[424682437,1781046654000,-150.0,0.00024633,4]
[424682436,1781046654000,-150.0,0.00024633,4]
[424682438,1781046654000,-150.0,0.00024633,4]
[424682439,1781046654000,-150.0,0.00024633,4]
[424682440,1781046654000,-150.0,0.00024633,4]
[424682430,1781046654000,-1031.31928494,0.00024561,7]
[424682445,1781046654000,-306.88,0.00024658,8]
[424682446,1781046654000,-151.0,0.00024658,2]
[424682449,1781046654000,-151.0,0.00024658,2]
[424682451,1781046654000,-151.0,0.00024658,2]
[424682450,1781046654000,-151.0,0.00024658,2]
[424682448,1781046654000,-151.0,0.00024658,2]
[424682447,1781046654000,-151.0,0.00024658,2]
[424682452,1781046654000,-151.0,0.00024658,2]
[424682453,1781046654000,-151.0,0.00024658,2]
[424682454,1781046654000,-815.39,0.00024658,2]
[424682455,1781046654000,-1000.0,0.00024658,2]
[424682457,1781046654000,-388.607731,0.00024658,2]
[424682399,1781046654000,-662.0,0.00024,2]
[424682444,1781046654000,-350.0,0.00024641,4]
[424682429,1781046654000,-1210.93670186,0.00024558,2]
[424682443,1781046654000,-150.0,0.00024633,4]
[424682431,1781046654000,-559.49661461,0.00024575,2]
[424682406,1781046654000,-1841.44160068,0.00024012,60]
[424682423,1781046654000,-154.69166554,0.00024491,2]
[424682408,1781046654000,-350.0,0.00024157,2]
[424682403,1781046654000,-4051.0,0.00024,2]
[424682400,1781046654000,-798.0,0.00024,2]
[424682407,1781046654000,-2000.0,0.00024027,7]
[424682402,1781046654000,-2143.0,0.00024,2]
[424682404,1781046654000,-215.89329178,0.00024,30]
[424682411,1781046654000,-154.6875,0.00024363,2]
[424682421,1781046654000,-584.29,0.00024364,7]
[424682410,1781046654000,-1344.1,0.00024324,2]
[424682415,1781046654000,-151.0,0.00024363,2]
[424682414,1781046654000,-233.5188934,0.00024363,2]
[424682409,1781046654000,-350.0,0.00024169,2]
[424682417,1781046654000,-2781.82699784,0.00024363,2]
[424682425,1781046654000,-152.0,0.00024519,6]
[424682412,1781046654000,-188.38149283,0.00024363,2]
[424682424,1781046654000,-922.90949155,0.000245,7]
[424682427,1781046654000,-1612.43193386,0.00024553,2]
[424682426,1781046654000,-168.95797687,0.0002455,15]
[424682422,1781046654000,-6709.0,0.00024383,2]
[424682428,1781046654000,-171.20417351,0.00024558,2]
[424682418,1781046654000,-280.03725111,0.00024363,2]
[424682420,1781046654000,-715.76,0.00024364,7]
[424682416,1781046654000,-151.0,0.00024363,2]
[424682413,1781046654000,-1910.18787185,0.00024363,2]
[424682419,1781046654000,-809.91,0.00024364,7]
[424682500,1781046655000,-2000.0,0.0002475,2]
[424682489,1781046655000,-1181.13,0.00024658,2]
[424682494,1781046655000,-150.0,0.00024698,4]
[424682496,1781046655000,-150.0,0.00024718,4]
[424682497,1781046655000,-150.0,0.00024721,4]
[424682490,1781046655000,-332.41683051,0.00024661,4]
[424682492,1781046655000,-150.0,0.00024686,4]
[424682495,1781046655000,-332.41683051,0.00024716,4]
[424682493,1781046655000,-332.41683051,0.00024688,4]
[424682491,1781046655000,-150.0,0.00024676,4]
[424682507,1781046655000,-559.49661461,0.00024787,2]
[424682498,1781046655000,-150.0,0.00024738,4]
[424682510,1781046655000,-200.0,0.00024799,2]
[424682514,1781046655000,-206.0,0.00024815,2]
[424682499,1781046655000,-332.41683051,0.00024743,4]
[424682509,1781046655000,-332.41683051,0.00024799,4]
[424682511,1781046655000,-150.0,0.00024804,4]
[424682501,1781046655000,-2000.0,0.0002475,2]
[424682502,1781046655000,-2000.0,0.0002475,2]
[424682503,1781046655000,-150.0,0.00024761,4]
[424682504,1781046655000,-150.0,0.00024763,4]
[424682506,1781046655000,-1055.93,0.00024784,7]
[424682505,1781046655000,-332.41683051,0.00024771,4]
[424682512,1781046655000,-150.0,0.00024809,4]
[424682518,1781046655000,-150.0,0.00024828,4]
[424682488,1781046655000,-150.0,0.00024658,2]
[424682508,1781046655000,-150.0,0.00024791,4]
[424682479,1781046655000,-817.801717,0.00024658,2]
[424682459,1781046655000,-388.607731,0.00024658,2]
[424682482,1781046655000,-817.801717,0.00024658,2]
[424682519,1781046655000,-150.0,0.00024843,4]
[424682463,1781046655000,-388.607731,0.00024658,2]
[424682460,1781046655000,-388.607731,0.00024658,2]
[424682458,1781046655000,-388.607731,0.00024658,2]
[424682464,1781046655000,-388.607731,0.00024658,2]
[424682461,1781046655000,-388.607731,0.00024658,2]
[424682462,1781046655000,-388.607731,0.00024658,2]
[424682466,1781046655000,-388.607731,0.00024658,2]
[424682467,1781046655000,-388.607731,0.00024658,2]
[424682477,1781046655000,-817.801717,0.00024658,2]
[424682468,1781046655000,-388.607731,0.00024658,2]
[424682476,1781046655000,-817.801717,0.00024658,2]
[424682486,1781046655000,-817.801717,0.00024658,2]
[424682472,1781046655000,-817.801717,0.00024658,2]
[424682469,1781046655000,-388.607731,0.00024658,2]
[424682470,1781046655000,-388.607731,0.00024658,2]
[424682474,1781046655000,-817.801717,0.00024658,2]
[424682475,1781046655000,-817.801717,0.00024658,2]
[424682471,1781046655000,-388.607731,0.00024658,2]
[424682478,1781046655000,-817.801717,0.00024658,2]
[424682481,1781046655000,-817.801717,0.00024658,2]
[424682480,1781046655000,-817.801717,0.00024658,2]
[424682485,1781046655000,-817.801717,0.00024658,2]
[424682487,1781046655000,-817.801717,0.00024658,2]
[424682484,1781046655000,-817.801717,0.00024658,2]
[424682483,1781046655000,-817.801717,0.00024658,2]
[424682473,1781046655000,-817.801717,0.00024658,2]
[424682523,1781046655000,-332.41683051,0.00024882,4]
[424682465,1781046655000,-388.607731,0.00024658,2]
[424682517,1781046655000,-150.0,0.00024828,4]
[424682560,1781046655000,-170.1426362,0.00025,2]
[424682549,1781046655000,-1000.0,0.00025,2]
[424682550,1781046655000,-1132.71453791,0.00025,2]
[424682558,1781046655000,-40707.29858851,0.00025,7]
[424682555,1781046655000,-621.07969832,0.00025,2]
[424682552,1781046655000,-1815.01307875,0.00025,2]
[424682559,1781046655000,-2237.57180312,0.00025,2]
[424682556,1781046655000,-3094.65801844,0.00025,2]
[424682551,1781046655000,-210.99144652,0.00025,2]
[424682553,1781046655000,-2000.0,0.00025,2]
[424682557,1781046655000,-7249.04893292,0.00025,2]
[424682554,1781046655000,-540.0,0.00025,2]
[424682564,1781046655000,-571.45689059,0.00025,2]
[424682565,1781046655000,-2098.14215651,0.00025,2]
[424682566,1781046655000,-783.35498657,0.00025,2]
[424682569,1781046655000,-151.0,0.00025,2]
[424682567,1781046655000,-636.5011041,0.00025,2]
[424682571,1781046655000,-705.0,0.00025,2]
[424682563,1781046655000,-746.19811307,0.00025,2]
[424682572,1781046655000,-1217.0,0.00025,2]
[424682568,1781046655000,-3193.0,0.00025,2]
[424682574,1781046655000,-151.0,0.00025,2]
[424682573,1781046655000,-327.0,0.00025,2]
[424682570,1781046655000,-151.0,0.00025,2]
[424682576,1781046655000,-151.0,0.00025,2]
[424682575,1781046655000,-151.0,0.00025,2]
[424682515,1781046655000,-559.49661461,0.00024824,2]
[424682561,1781046655000,-535772.48149669,0.00025,2]
[424682544,1781046655000,-150.0,0.00024975,4]
[424682562,1781046655000,-150.0,0.00025,2]
[424682548,1781046655000,-248901.82407962,0.00025,2]
[424682520,1781046655000,-150.0,0.00024847,4]
[424682547,1781046655000,-191.951785,0.00024997,7]
[424682513,1781046655000,-1141.81965631,0.00024811,2]
[424682516,1781046655000,-332.41683051,0.00024826,4]
[424682522,1781046655000,-166.0,0.0002488,5]
[424682521,1781046655000,-332.41683051,0.00024854,4]
[424682535,1781046655000,-290.3986294,0.00024911,2]
[424682524,1781046655000,-150.0,0.00024889,4]
[424682525,1781046655000,-150.0,0.00024894,4]
[424682526,1781046655000,-150.0,0.00024896,4]
[424682530,1781046655000,-1980.8648231,0.00024911,2]
[424682531,1781046655000,-242.15909246,0.00024911,2]
[424682532,1781046655000,-249.33485306,0.00024911,2]
[424682527,1781046655000,-150.0,0.00024898,4]
[424682536,1781046655000,-150.0,0.00024932,4]